Cogmind - Beta 10.2 @@@ ROGUE MODE // 2021.12.01 @ 08:35:38 Player: TheSlyFawkes Result: Self-destructed Performance ------------- Evolutions (1) 500 Regions Visited (3) 600 Robots Destroyed (18) 90 Value Destroyed (481) 481 Prototype IDs (0) 0 Alien Tech Used (0) 0 Bonus (0) 0 TOTAL SCORE: 1671 Bonus ------- None Cogmind --------- Core Integrity 377/400 Matter 285/300 Energy 123/125 System Corruption 0% Temperature Cool (2) Movement Flying (37) Location -9/Materials Parts ------- > --- POWER (2) -------- Light Ion Engine > --- PROPULSION (2) --- VTOL Module VTOL Module > --- UTILITY (3) ------ Visual Processing Unit Signal Interpreter > --- WEAPON (2) ------- Small Laser > --- INVENTORY (4) ---- VTOL Module Small Laser Peak State ------------ > --- POWER ------------ Light Ion Engine > --- PROPULSION ------- VTOL Module VTOL Module > --- UTILITY ---------- Visual Processing Unit Signal Interpreter > --- WEAPON ----------- Small Laser Datajack > --- INVENTORY -------- VTOL Module VTOL Module Small Laser [Rating: 10] Favorites ----------- Power Ion Engine Engine Ion Engine Propulsion Light Treads Treads Light Treads Flight Unit VTOL Module Utility Signal Interpreter Storage Small Storage Unit Processor Signal Interpreter Weapon Light Assault Rifle Energy Gun Small Laser Ballistic Gun Light Assault Rifle Special Melee Weapon Datajack Build | -11 -10 -10 -9 ------- Run | Scr Mat Min Mat Slots Evolved 2 | . . . 2 Power 1 | . . . 1 Propulsion . | . . . . Utility 1 | . . . 1 Weapon . | . . . . Parts Attached 19 | 5 12 1 1 Power 3 | 1 2 . . Engine 3 | 1 2 . . Core . | . . . . Reactor . | . . . . Propulsion 5 | 2 2 1 . Treads 2 | 2 . . . Leg . | . . . . Wheel . | . . . . Hover . | . . . . Flight 3 | . 2 1 . Utility 3 | . 3 . . Device . | . . . . Storage 1 | . 1 . . Processor 2 | . 2 . . Hackware . | . . . . Protection . | . . . . Artifact . | . . . . Weapon 8 | 2 5 . 1 Energy Gun 4 | 1 3 . . Energy Cannon . | . . . . Ballistic Gun 2 | 1 1 . . Ballistic Cannon . | . . . . Launcher . | . . . . Special Weapon . | . . . . Impact Weapon . | . . . . Slashing Weapon . | . . . . Piercing Weapon . | . . . . Special Melee Weapon 2 | . 1 . 1 Unidentified Prototypes . | . . . . Parts Lost 6 | . 3 2 1 Power . | . . . . Propulsion 2 | . 1 1 . Utility . | . . . . Weapon 4 | . 2 1 1 Highest Loss Streak 2 | . 2 2 1 Average Slot Usage (%) 94 | . 95 95 72 Engine 13 | . 14 14 11 Treads 20 | . 22 . . Flight 4 | . 2 28 22 Processor 26 | . 26 28 22 Energy Gun 14 | . 14 14 11 Ballistic Gun 11 | . 12 . . Special Melee Weapon 2 | . 1 9 6 Naked Turns . | . . . . Heaviest Build 12 | 8 12 5 5 Greatest Support 40 | 40 40 10 10 Greatest Overweight (x) . | . . . . Average Overweight (x) . | . . . . Largest Inventory Capacity 6 | 4 6 4 4 Average Capacity 4 | 4 4 4 4 Most Carried 4 | 4 4 3 3 Average Carried 2 | 3 2 2 2 Final Capacity 4 | 4 4 4 4 Final Carried 3 | 3 3 2 2 Class Distribution -------------------- 72% | Mutant 27% | Scavenger-Mutant Dominant Class ---------------- Mutant | -10/Materials Mutant | -10/Mines Mutant | -9/Materials Resources | -11 -10 -10 -9 ----------- Run | Scr Mat Min Mat Matter Collected 410 | 248 162 . . Remotely . | . . . . Salvage Created 591 | . 591 . . Parts 41 | . 41 . . Haulers Intercepted . | . . . . Recyclers Shooed . | . . . . Parts Field Recycled . | . . . . Retrieved Matter . | . . . . Parts Self-Destructed . | . . . . Prevented . | . . . . Kills | -11 -10 -10 -9 ------- Run | Scr Mat Min Mat Combat Hostiles Destroyed 14 | . 14 . . Guns 14 | . 14 . . Classes Destroyed 4 | . 4 . . Operator 1 | . 1 . . Watcher 3 | . 3 . . Swarmer 3 | . 3 . . Grunt 11 | . 11 . . Best Kill Streak 3 | . 3 . . Combat Bots Only 3 | . 3 . . Max Kills in Single Turn 2 | . 2 . . Gunslinging 1 | . 1 . . Exploded . | . . . . Melee . | . . . . Uniques/NPCs Destroyed . | . . . . Combat | -11 -10 -10 -9 -------- Run | Scr Mat Min Mat Damage Taken 619 | . 488 79 52 Core 124 | . 77 24 23 Absorbed by Shields . | . . . . Core Remaining (%) 79 | 100 . 59 . Volleys Fired 52 | . 52 . . Largest 2 | . 2 . . Hottest 70 | . 70 . . Shots Fired 101 | . 101 . . Gun 101 | . 101 . . Cannon . | . . . . Launcher . | . . . . Special . | . . . . Kinetic 50 | . 50 . . Thermal 51 | . 51 . . Explosive . | . . . . Electromagnetic . | . . . . Robot Hit Streak 13 | . 13 . . Robot Miss Streak 6 | . 6 . . Penetration Max . | . . . . Secondary Targets 2 | . 2 . . Max Gunslinging Chain 1 | . 1 . . Shots Hit Robots 58 | . 58 . . Core Hits 34 | . 34 . . Critical Hits . | . . . . Critical Kills . | . . . . Critical Parts Destroyed . | . . . . Melee Attacks 1 | . 1 . . Impact . | . . . . Slashing . | . . . . Piercing . | . . . . Sneak Attacks . | . . . . Combat Hostiles . | . . . . Follow-up Attacks . | . . . . Damage Inflicted 615 | . 615 . . Guns 615 | . 615 . . Cannons . | . . . . Explosions . | . . . . Melee . | . . . . Ramming . | . . . . Kinetic 218 | . 218 . . Thermal 397 | . 397 . . Explosive . | . . . . Electromagnetic . | . . . . Impact . | . . . . Slashing . | . . . . Piercing . | . . . . Highest Corruption . | . . . . Average Corruption . | . . . . Corruption Purged . | . . . . Overload Shots . | . . . . Overflow Damage . | . . . . Projectiles . | . . . . Explosions . | . . . . Melee . | . . . . Knockbacks . | . . . . Impact . | . . . . Kinetic . | . . . . Secondary . | . . . . Self-Inflicted Damage . | . . . . Shots . | . . . . Rammed . | . . . . Targets Rammed . | . . . . Kicked . | . . . . Crushed . | . . . . Highest Temperature 132 | . 132 . . Average Temperature 30 | . 30 . . Received Heat Transfer 249 | . 222 . 27 Siege Activations . | . . . . Robots Corrupted . | . . . . Combat Hostiles . | . . . . Parts Fried . | . . . . Impact Corruptions . | . . . . Robots Melted . | . . . . Combat Hostiles . | . . . . Parts Melted . | . . . . Heat Transferred 1066 | . 1066 . . Parts Sabotaged . | . . . . Parts Stolen . | . . . . Parts Stripped . | . . . . Power Chain Reactions . | . . . . Missiles Intercepted . | . . . . Alert | -11 -10 -10 -9 ------- Run | Scr Mat Min Mat Peak Influence 234 | . 234 51 76 Initial 51 | . . 51 11 Average 93 | . 103 39 43 Maximum Alert Level 1 | . 1 . . Low Security (%) 85 | 100 83 100 100 Level 1 14 | . 16 . . Level 2 . | . . . . Level 3 . | . . . . Level 4 . | . . . . Level 5 . | . . . . High Security . | . . . . Max Security . | . . . . Squads Dispatched 4 | . 3 . 1 Investigation 1 | . 1 . . Extermination . | . . . . Reinforcement 3 | . 2 . 1 Assault . | . . . . Garrison . | . . . . Intercept . | . . . . Construction Impeded . | . . . . Haulers Reinforced . | . . . . Stealth | -11 -10 -10 -9 --------- Run | Scr Mat Min Mat Distress Signals 1 | . . . 1 Communications Jammed . | . . . . Distress Signals . | . . . . Times Spotted 39 | . 29 2 8 Peak Tracking Total 5 | . 4 2 5 Tactical Retreats 2 | . 1 . 1 Traps | -11 -10 -10 -9 ------- Run | Scr Mat Min Mat Traps Triggered 1 | . 1 . . Indirectly . | . . . . Trap Hack Attempts . | . . . . Triggered . | . . . . Disarmed . | . . . . Reprogrammed . | . . . . Reused . | . . . . Traps Extracted . | . . . . Installed . | . . . . Triggered . | . . . . Machines | -11 -10 -10 -9 ---------- Run | Scr Mat Min Mat Machines Disabled . | . . . . Max in Single Turn . | . . . . Machines Sabotaged . | . . . . Garrisons Compromised . | . . . . Overloaded Fab Kills . | . . . . Fab Network Shutdowns . | . . . . Hacking | -11 -10 -10 -9 --------- Run | Scr Mat Min Mat Machines Accessed 8 | . 5 . 3 Terminals 8 | . 5 . 3 Fabricators . | . . . . Repair Stations . | . . . . Recycling Units . | . . . . Scanalyzers . | . . . . Garrison Access . | . . . . Total Hacks 20 | . 12 . 8 Successful 6 | . 5 . 1 Failed 14 | . 7 . 7 Catastrophic 2 | . 2 . . Database Lockouts . | . . . . Manual 10 | . 5 . 5 Terminals 20 | . 12 . 8 Fabricators . | . . . . Repair Stations . | . . . . Recycling Units . | . . . . Scanalyzers . | . . . . Garrison Access . | . . . . Terminal Hacks 6 | . 5 . 1 Terminal Index 2 | . 1 . 1 Locate Traps 2 | . 2 . . Patrol Status 1 | . 1 . . Zone Layout 1 | . 1 . . Fabricator Hacks . | . . . . Repair Station Hacks . | . . . . Recycling Unit Hacks . | . . . . Scanalyzer . | . . . . Garrison Access Hacks . | . . . . Unauthorized Hacks . | . . . . Terminals . | . . . . Fabricators . | . . . . Repair Stations . | . . . . Recycling Units . | . . . . Scanalyzers . | . . . . Garrison Access . | . . . . Data Cores Recovered . | . . . . Used . | . . . . Hacking Detections 8 | . 5 . 3 Full Trace Events 1 | . 1 . . Feedback Events . | . . . . Feedback Blocked . | . . . . Robot Schematics Acquired . | . . . . Robots Built . | . . . . Matter . | . . . . Time . | . . . . Total Robot Build Rating . | . . . . Part Schematics Acquired . | . . . . Parts Built . | . . . . Matter . | . . . . Time . | . . . . Total Part Build Rating . | . . . . Parts Repaired . | . . . . Time . | . . . . Parts Recycled . | . . . . Recycled Matter . | . . . . Retrieved Matter . | . . . . Retrieved Components . | . . . . Parts Scanalyzed . | . . . . Part Schematics Acquired . | . . . . Parts Damaged . | . . . . Bothacking | -11 -10 -10 -9 ------------ Run | Scr Mat Min Mat Used RIF Installer . | . . . . Robots Hacked 1 | . 1 . . Non-combat 1 | . 1 . . Combat . | . . . . Robot Hacks Applied 1 | . 1 . . parse_system 1 | . 1 . . Relay Couplers Released . | . . . . Robots Rewired . | . . . . Allies Hacked . | . . . . Hacks Repelled . | . . . . Allies | -11 -10 -10 -9 -------- Run | Scr Mat Min Mat Total Allies . | . . . . Largest Group . | . . . . Highest-Rated Group . | . . . . Highest-Rated Ally . | . . . . Total Orders . | . . . . Ally Attacks . | . . . . Total Damage . | . . . . Kills . | . . . . Allies Corrupted . | . . . . Allies Melted . | . . . . Intel | -11 -10 -10 -9 ------- Run | Scr Mat Min Mat Robot Analysis Total . | . . . . Derelict Logs Recovered . | . . . . Drone Launches . | . . . . Drone Recoveries . | . . . . Exploration | -11 -10 -10 -9 ------------- Run | Scr Mat Min Mat Turns Passed 1446 | 71 1257 30 88 Spaces Moved 1204 | 50 896 75 183 Core 18 | 18 . . . Treads 626 | 32 594 . . Legs . | . . . . Wheels . | . . . . Hover . | . . . . Flight 560 | . 302 75 183 Fastest Speed 37 | 50 37 37 37 Average Speed 101 | 120 118 37 37 Slowest Speed 160 | 160 160 40 37 Overloaded Moves . | . . . . Propulsion Burnouts . | . . . . Robots Hopped 3 | . . 1 2 Cave-ins Triggered . | . . . . Exploration Rate (%) 36 | 3 96 29 18 Regions Visited 3 Branch Regions 1 Pre-discovered Areas . | . . . . Known Exits Taken 2 | . 1 1 . Unknown Exits Taken 1 | 1 . . . Scrap Searched . | . . . . Spaces Dug . | . . . . Terrain Destroyed . | . . . . Melee . | . . . . Projectile . | . . . . AOE . | . . . . Terrain Rammed . | . . . . Walls Destroyed . | . . . . Machines Disabled . | . . . . Actions | -11 -10 -10 -9 --------- Run | Scr Mat Min Mat Total 1335 | 59 1000 75 201 Wait 39 | . 20 1 18 Move 1195 | 49 895 72 179 Hop 3 | . . 1 2 Pick Up 16 | 4 11 . 1 Fast Attach 6 | 5 1 . . Attach 7 | . 5 1 1 Detach . | . . . . Swap 6 | . 6 . . Drop 10 | 1 9 . . Fire 52 | . 52 . . Melee 1 | . 1 . . Ram . | . . . . Kick . | . . . . Crush . | . . . . Escape Stasis . | . . . . Rewire . | . . . . Trap . | . . . . Miscellaneous . | . . . . Route ------- -11/Scrapyard -10/Materials (discovered 5 exits: *Mat x3 / *Min x2) -10/Mines -9/Materials History --------- Turn | Location | Event 16 | -11/Scrapyard | Discovered new exit (range 16) 72 | -11/Scrapyard | Entered Materials 314 | -10/Materials | Build established: Mutant 643 | -10/Materials | Discovered new exit (range 10) 677 | -10/Materials | Discovered new exit (range 17) 789 | -10/Materials | Identified exit to Materials 968 | -10/Materials | Discovered new exit (range 10) 1073 | -10/Materials | Build established: Scavenger-Mutant 1242 | -10/Materials | Identified exit to Mines 1310 | -10/Materials | Discovered exit to Materials (range 13) 1314 | -10/Materials | Discovered exit to Mines (range 18) 1329 | -10/Materials | Entered Mines 1330 | -10/Mines | Assembled infested the area 1335 | -10/Mines | Assisted by a Guerilla fighting off Assembled 1341 | -10/Mines | Discovered exit to Materials (range 13) 1359 | -10/Mines | Entered Materials 1359 | -9/Materials | Evolved 2 slots: Power x1, Utility x1 1447 | -9/Materials | Self-destructed Last Messages --------------- Laser Drill disabled. Datajack destroyed. VTOL Module destroyed. K-01 Serf collects debris. Seismic Survey Station disabled. Laser Drill disabled. K-01 Serf collects debris. U-05 Engineer lays Concrete. PARAMETERS=POWER_1,UTILITY_1 LOCATION=MATERIALS GOAL=ESCAPE Acquired Datajack. Connecting with Terminal... >>Index(Terminals) Found 12 terminals. Downloaded coordinate data. ALERT: Hostiles spotted, dispatching reinforcements to Terminal M009. Datajack destroyed. Connecting with Terminal... W-16 Scout sends out distress signal. Map ----- +----------------------------------------------------+ | ?????????????????????????????????????????????????? | | ?????????????????????????????????????????????????? | | ?????????????????????????????????????????????????? | | ?????????????????????????????????????????????????? | | ?????????????????????????????????????????????????? | | ?????????????????????????????????????????????????? | | ?????????????????????????????????????????????????? | | ?????????????????????????????????????????????????? | | ?????????????????????????????????????????????????? | | ?????????????????????????????????????????????????? | | ?????????????????????????????????????????????????? | | ?????????????????????????????????????????????????? | | ?????????????????????????????????????????????????? | | ?????????????????????????????????????????????????? | | ?????????????????????????????????????????????????? | | ?????????????????????????????????????????????????? | | ?????????????????????########????????????????????? | | ????????????????###### """ #????????????????????? | | ????????????????# T # """ #????????????????????? | | ????????????????# # """ #????????????????????? | | ??????????????### # #????????????????????? | | ????#########?# + # #????????????????????? | | ????# ?# # # #????????????????????? | | ????# # #########+#################??????? | | ????# # w g #? | | ????# + @ u###########??????? | | ????# ]/ # """ """ # #??????? | | ????# / ### """ """ + "" """ ???????? | | ????# ???# """ """ # "Y """ ???????? | | ????# ???# """ """ # "" """ ???????? | | ????########??### !# """????????? | | ##????????????# # """????????? | | #????????????# gg # ????????? | | !#????????????# # ???????? | | #????????????# ##########???????? | | #????????????# #????????????????? | | #????????????# *!! #????????????????? | | ######???????# *!! "T" ###############??? | | ## ######### !!! """ # #??? | | # #??? | | T # """" #??? | | ## ############+#############+### + """" #??? | | ?######????????? ????# # # """" #??? | | ???????????????# #??# # # #??? | | ???????????????# #??# = # ########??? | | #######????????# """" #??# #####?????????? | | """""???????# """" #??# [[! #?????????????? | | "" ""T""???????# """" #??# [[! #?????????????? | | "" ???????########??# [[[ #?????????????? | | "" ?????????????????# #?????????????? | +----------------------------------------------------+ Best States ------------- Heat Dissipation 28 Energy Generation 10 Energy Capacity 250 Matter Stores 300 Matter Capacity 300 Sight Range 18 Terrain Scan Density 10 Evasion (%) 62 Recoil Reduction 2 Item Schematics ----------------- None Robot Schematics ------------------ None Fabricated ------------ Nothing Alien Tech Used ----------------- None Achievements -------------- None Challenges ------------ None Game ------ Seed CloakHoverDiverter Manual? 0 Play Time 00:21:52 Cumulative 20.2 hours Start 2021.12.01 @ 08:14:57 End 2021.12.01 @ 08:35:38 Sessions 1 Manual Loads 0 Difficulty Rogue Special Mode None Game No. 29 Rogue 28 Adventurer 1 Explorer 0 Win Type - Total 0 Types 0/0/0/0/0/0/0/0/0 Lore% 19 Gallery% 18 Achievement% 21 Wizard Run 0 Options --------- ASCII 0 Keyboard 0 Movement Mouse Keybinds 0 Fullscreen 1 Font 18/SmallcapsGlow Map View 76x50 Tactical HUD 0 Map Filters NONE Filters NONE Steam 1 RUN: a333e3be-d228-4876-894a-33f46cdf8e15